bitfinex/quotes_ETHUSD_20220106
["timestamp","ask_amount","ask_price","bid_price","bid_amount"]
[1641482190977,1.48750265,3375.8,3375.4,0.351]
[1641482191179,0.00568423,3375.7,3375.4,0.351]
[1641482191615,1.581e-05,3375.6,3375.4,0.351]
[1641482191820,1.581e-05,3375.6,3375.5,0.00396139]
[1641482192013,0.00456319,3376.4,3375.5,13.35984139]
[1641482192313,0.00399477,3376.3,3375.5,13.35984139]
[1641482192513,0.00399477,3376.3,3375.9,0.74033]
[1641482192713,1.48069,3376.9,3375.9,0.74033]
[1641482192714,0.00342635,3376.2,3376.0,0.351]
[1641482192913,0.00342635,3376.2,3376.1,13.06584778]
[1641482193118,1.48069,3376.9,3376.1,14.47907478]
[1641482193315,1.48069,3376.9,3376.1,15.47907478]
[1641482193515,0.00683689,3376.8,3376.1,14.47907478]
[1641482193716,0.00683689,3376.8,3376.2,1.0]
[1641482193913,0.00626847,3376.7,3376.3,1.0913122]
[1641482194114,0.00626847,3376.7,3376.3,0.351]
[1641482194315,0.00570004,3376.6,3376.3,0.351]
[1641482194815,0.6757337,3377.0,3376.3,0.351]
[1641482194816,0.00513162,3376.5,3376.3,0.351]
[1641482195017,0.74552162,3376.5,3376.3,0.351]
[1641482195275,0.00456319,3376.4,3376.3,1.5918581]
[1641482195777,0.00456319,3376.4,3376.3,2.5918581]
[1641482196173,0.00456319,3376.4,3376.3,5.2918581]
[1641482197075,0.00456319,3376.4,3376.3,0.351]
[1641482197275,0.00456319,3376.4,3376.3,0.35496052]
[1641482197474,0.00456319,3376.4,3375.4,0.521]
[1641482197873,0.00399477,3376.3,3375.4,0.521]
[1641482198074,1.72287088,3376.0,3375.6,1.23716492]
[1641482198473,1.48458635,3376.2,3375.6,1.97763492]
[1641482198474,0.00172108,3375.9,3375.6,1.97763492]
[1641482198676,0.00172108,3375.9,3375.7,0.351]
[1641482198879,0.00115265,3375.8,3375.7,0.351]
[1641482199115,0.00115265,3375.8,3375.7,14.21872034]
[1641482199518,0.00115265,3375.8,3375.7,12.351]
[1641482199716,0.00115265,3375.8,3375.7,13.0913598]
[1641482200515,0.00115265,3375.8,3375.7,12.351]
[1641482201116,0.6757337,3377.0,3375.8,11.0]
[1641482201319,0.6757337,3377.0,3376.4,0.7403]
[1641482201522,0.00397897,3376.5,3376.4,0.7403]
[1641482202116,0.00397897,3376.5,3376.4,12.75592644]
[1641482202320,0.00397897,3376.5,3376.4,14.13770602]
[1641482202517,0.00397897,3376.5,3376.4,15.27320644]
[1641482202964,0.00397897,3376.5,3376.4,15.30909834]
[1641482203164,0.00397897,3376.5,3376.4,15.30863295]
[1641482203562,0.00397897,3376.5,3376.4,15.27320644]
[1641482203763,0.00591395,3376.5,3376.4,15.27320644]
[1641482203962,0.00591395,3376.5,3376.4,15.30669133]
[1641482204167,0.00591395,3376.5,3376.4,15.27320644]
[1641482204565,0.00591395,3376.5,3376.4,16.01338914]
[1641482205966,0.00096749,3376.6,3376.5,11.0]
[1641482206167,0.00096749,3376.6,3376.5,12.351]
[1641482210363,0.00096749,3376.6,3376.5,29.631]
[1641482210560,0.07525492,3377.5,3376.5,29.64373594]
[1641482210763,0.07525492,3377.5,3377.0,0.74]
[1641482211060,0.07525492,3377.5,3377.1,3.44496535]
[1641482211258,5.87106019,3378.5,3377.2,1.83938931]
[1641482211462,5.87106019,3378.5,3377.3,2.81964494]
[1641482211661,0.00682108,3377.7,3377.3,0.73996]
[1641482211859,0.00682108,3377.7,3377.4,1.0]
[1641482212063,0.00625266,3377.6,3377.5,12.02811558]
[1641482212259,0.00625266,3377.6,3377.5,1.02811558]
[1641482213059,2.72953079,3377.8,3377.7,9.93997]
[1641482213260,2.72953079,3377.8,3377.7,0.73997]
[1641482213460,2.73066763,3377.8,3377.5,5.01950477]
[1641482214024,2.73066763,3377.8,3377.7,6.5415307]
[1641482214225,2.73066763,3377.8,3377.7,3.6415307]
[1641482214825,2.73066763,3377.8,3377.7,2.51146919]
[1641482215624,2.73066763,3377.8,3377.6,2.51146919]
[1641482215826,3.03066763,3377.8,3377.6,2.51146919]
[1641482216225,2.73066763,3377.8,3377.6,2.51146919]
[1641482216425,2.73066763,3377.8,3376.8,3.26200291]
[1641482216625,2.73066763,3377.8,3376.9,1.48021]
[1641482216825,3.77082763,3377.8,3377.1,1.0006115]
[1641482217025,2.27206807,3377.6,3377.1,1.0006115]
[1641482217228,2.27206807,3377.6,3377.2,0.0022737]
[1641482217428,2.57206807,3377.6,3377.2,0.0022737]
[1641482217865,0.74022,3377.5,3377.2,0.0022737]
[1641482218265,0.3,3377.6,3377.2,0.0022737]
[1641482218667,3.03066763,3377.8,3377.2,0.0022737]
[1641482219367,2.73066763,3377.8,3377.3,0.7401]
[1641482219568,2.63066763,3377.8,3377.3,0.351]
[1641482219772,2.63066763,3377.8,3377.4,0.00113685]
[1641482220469,2.63066763,3377.8,3377.5,1.47992]
[1641482220673,2.63066763,3377.8,3377.4,2.51217781]
[1641482221271,2.63066763,3377.8,3377.4,0.00113685]
[1641482221920,2.33066763,3377.8,3377.4,0.00113685]
[1641482222117,2.33066763,3377.8,3377.4,0.74120685]
[1641482222321,2.33066763,3377.8,3377.4,1.48120685]
[1641482222521,2.33066763,3377.8,3377.4,0.74113685]
[1641482222719,2.32666763,3377.8,3377.4,0.74113685]
[1641482223120,2.32666763,3377.8,3377.5,1.48388901]
[1641482223321,2.32666763,3377.8,3377.6,0.73996]
[1641482224422,9.4829,3379.1,3377.7,11.0]
[1641482224423,0.73998,3378.5,3377.7,11.0]
[1641482224621,0.73998,3378.5,3378.0,0.73997]
[1641482225021,0.3,3378.4,3377.5,1.48388901]
[1641482225274,0.74001,3378.4,3377.5,1.48388901]
[1641482225467,0.74001,3378.4,3377.6,0.00113685]
[1641482225667,1.48003,3378.6,3377.6,0.00113685]
[1641482225867,1.48003,3378.6,3377.6,1.35482659]
[1641482226069,2.03032513,3378.0,3377.8,0.74001]
[1641482226269,0.00397897,3378.5,3377.8,0.74001]
[1641482226669,0.54336054,3378.7,3377.8,0.74001]
[1641482226869,0.6757337,3379.0,3378.3,1.47963]
[1641482227170,0.00113685,3378.6,3378.3,1.47963]
[1641482227774,0.00113685,3378.6,3378.5,1.26777575]
[1641482227971,0.00113685,3378.6,3378.5,6.51777575]
[1641482228772,0.00113685,3378.6,3378.5,1.26777575]
[1641482230315,2.6206602,3378.9,3378.6,6.05]
[1641482230518,0.6757337,3379.0,3378.6,6.05]
[1641482230519,0.6757337,3379.0,3378.6,9.34496144]
[1641482230719,3.685e-05,3378.8,3378.7,12.0]
[1641482230927,3.685e-05,3378.8,3378.7,12.351]
[1641482231921,3.685e-05,3378.8,3378.7,11.351]
[1641482232965,2.19834625,3378.8,3378.7,0.351]
[1641482233665,2.19834625,3378.8,3378.7,5.301]
[1641482234068,2.19834625,3378.8,3378.7,0.35495766]
[1641482234767,2.19834625,3378.8,3378.7,3.35495766]
[1641482235170,3.685e-05,3378.8,3378.7,3.35495766]
[1641482235368,3.685e-05,3378.8,3378.7,6.13712284]
[1641482235574,3.685e-05,3378.8,3378.7,4.35495766]
[1641482235769,3.685e-05,3378.8,3378.7,9.40495766]
[1641482236168,3.685e-05,3378.8,3378.7,12.1220702]
[1641482236619,3.685e-05,3378.8,3378.7,11.35495766]
[1641482237019,3.685e-05,3378.8,3378.7,12.35495766]
[1641482237621,3.685e-05,3378.8,3378.7,17.12509021]
[1641482238527,0.6757337,3379.0,3378.8,11.0]
[1641482238724,0.6757337,3379.0,3378.9,29.37057]
[1641482238924,0.6757337,3379.0,3378.9,13.09057]
[1641482239121,0.67687054,3379.0,3378.9,13.09057]
[1641482239322,8.14022211,3379.9,3379.0,11.0]
[1641482239524,8.14022211,3379.9,3379.6,1.29986312]
[1641482239724,0.00454739,3379.8,3379.6,1.29986312]
[1641482240125,0.00397897,3379.7,3379.6,1.29986312]
[1641482240373,0.00397897,3379.7,3379.1,1.1545]
[1641482240766,0.07577359,3380.1,3379.5,7.17945945]
[1641482240767,0.00341055,3379.6,3379.5,7.17945945]
[1641482241167,0.00568424,3379.6,3379.5,1.12945945]
[1641482241573,0.00568424,3379.6,3379.5,12.12945945]
[1641482242568,0.00568424,3379.6,3379.5,14.34216904]
[1641482242871,0.00568424,3379.6,3379.5,11.0]
[1641482243069,0.00568424,3379.6,3379.5,12.50594594]
[1641482243672,0.00568424,3379.6,3379.5,1.50594594]
[1641482243873,1.83894691,3379.6,3379.5,1.50594594]
[1641482244317,2.08894691,3379.6,3379.5,1.09364594]
[1641482244717,2.08894691,3379.6,3379.2,2.25891891]
[1641482244917,2.08894691,3379.6,3379.2,1.35559319]
[1641482245218,0.00284212,3379.5,3379.0,1.12962481]
[1641482245718,0.73984,3379.3,3379.2,1.12962481]
[1641482246018,0.74154528,3379.3,3379.2,1.12962481]
[1641482246219,0.00170528,3379.3,3379.2,1.12962481]
[1641482246620,0.00170528,3379.3,3379.2,3.3]
[1641482247118,0.00170528,3379.3,3379.1,2.2967952]
[1641482247318,0.00170528,3379.3,3379.1,1.16717039]
[1641482247518,0.00113685,3379.2,3378.8,2.25891891]
[1641482247973,2.60000799,3379.3,3378.8,2.25891891]
[1641482248169,2.60000799,3379.3,3378.9,2.25891891]
[1641482248370,0.00113685,3379.2,3378.9,2.25891891]
[1641482248570,0.00113685,3379.2,3379.0,1.29840801]
[1641482248770,0.00113685,3379.2,3379.0,2.77772801]
[1641482249773,0.00113685,3379.2,3379.0,5.04060418]
[1641482250578,0.00113685,3379.2,3379.0,2.78168527]
[1641482251178,0.00113685,3379.2,3379.0,5.04060418]
[1641482251818,0.00113685,3379.2,3379.1,11.87948148]
[1641482252419,0.00113685,3379.2,3379.1,1.12948148]
[1641482252623,0.00113685,3379.2,3379.1,5.92948148]
[1641482253021,0.00113685,3379.2,3379.1,9.37659958]
[1641482253422,0.00113685,3379.2,3379.1,9.46913148]
[1641482253623,0.00113685,3379.2,3379.1,6.66913148]
[1641482254226,0.00113685,3379.2,3379.1,5.53965]
[1641482254423,0.00113685,3379.2,3379.1,8.33965]
[1641482255024,0.00113685,3379.2,3379.1,5.53965]
[1641482255468,0.00113685,3379.2,3379.1,8.63965]
[1641482255669,0.00303787,3379.2,3379.1,8.63965]
[1641482255971,0.00398838,3379.2,3379.1,8.63965]
[1641482256271,0.00398838,3379.2,3379.1,4.8]
[1641482256467,0.00398838,3379.2,3379.1,10.30983754]
[1641482257366,0.00398838,3379.2,3379.1,7.30983754]
[1641482258368,0.00398838,3379.2,3379.1,2.50983754]
[1641482260021,2.07455875,3379.2,3379.1,2.50983754]
[1641482260221,0.00398838,3379.2,3379.1,2.50983754]
[1641482260621,2.75,3379.1,3379.0,5.726e-05]
[1641482261024,2.75,3379.1,3378.3,1.5058883]
[1641482261025,11.0,3379.0,3378.3,1.5058883]
[1641482261224,11.0,3379.0,3377.9,3.67483212]
[1641482261225,0.01247721,3378.4,3378.1,0.83250721]
[1641482261421,4.95,3378.2,3377.9,3.67483212]
[1641482261624,0.74029,3378.1,3377.9,3.67483212]
[1641482262022,0.74029,3378.1,3377.0,2.22587733]
[1641482262023,0.74029,3378.1,3377.1,3.01340294]
[1641482262222,0.7402459,3377.8,3377.1,3.01340294]
[1641482262422,0.74026,3378.1,3377.2,0.00454739]
[1641482263071,0.74025,3377.6,3377.2,0.00454739]
[1641482263265,2.78753514,3378.3,3377.2,0.00454739]
[1641482263467,0.00113685,3378.2,3377.2,0.00454739]
[1641482263869,0.00113685,3378.2,3377.1,0.00511581]
[1641482264066,0.00113685,3378.2,3377.0,0.00568423]
[1641482264268,0.00113685,3378.2,3377.0,3.01908717]
[1641482264566,0.00113685,3378.2,3377.1,2.20287865]
[1641482264567,0.3,3377.7,3377.1,2.20287865]
[1641482264772,0.3,3377.7,3377.1,2.20799446]
[1641482265667,0.74017,3377.5,3377.1,2.20799446]
[1641482266266,0.74017,3377.5,3377.1,5.2213974]
[1641482266521,0.74017,3377.5,3377.1,3.01851875]
[1641482266917,0.74017,3377.5,3377.1,0.00511581]
[1641482267515,2.78230856,3377.5,3377.1,0.00511581]
[1641482268116,2.78230856,3377.5,3376.9,0.00625266]
[1641482269718,2.78230856,3377.5,3376.8,0.00682108]
[1641482270279,1.4808,3377.1,3376.8,0.00682108]
[1641482270473,1.97707445,3377.0,3376.8,0.00682108]
[1641482270675,1.97707445,3377.0,3376.6,0.00795793]
[1641482271275,1.97707445,3377.0,3376.9,1.5069024]
[1641482271476,3.45801445,3377.0,3376.9,1.5069024]
[1641482271678,3.45801445,3377.0,3376.9,1.51315506]
[1641482272276,1.48094,3377.0,3376.9,0.00625266]
[1641482273280,1.48094,3377.0,3376.9,1.51315506]
[1641482273477,1.48094,3377.0,3376.9,1.5069024]
[1641482273678,1.48094,3377.0,3376.9,1.51315506]
[1641482274125,1.48094,3377.0,3376.9,0.00625266]
[1641482274330,1.48094,3377.0,3376.5,2.26038817]
[1641482274331,1.12514773,3376.7,3376.5,2.26038817]
[1641482274532,1.12514773,3376.7,3376.2,3.01340294]
[1641482274533,2.53820626,3376.6,3376.2,1.74420294]
[1641482274728,0.7407817,3376.2,3375.7,3.77278335]
[1641482274931,0.7407817,3376.2,3376.0,2.26063825]
[1641482274932,1.09183,3376.2,3376.0,2.26063825]
[1641482275126,10.95,3376.1,3375.6,1.52076547]
[1641482275426,1.67568898,3375.4,3374.9,2.53820626]
[1641482275627,0.35213685,3376.0,3374.8,5.0345965]
[1641482275827,1.4816396,3375.6,3375.0,0.00454738]
[1641482276428,0.74075,3375.3,3375.0,0.00454738]
[1641482277029,0.74075,3375.3,3374.6,0.00682108]
[1641482277231,0.74075,3375.3,3374.8,2.06567527]
[1641482277430,1.48142,3375.9,3374.8,2.06567527]
[1641482277632,0.00113685,3376.0,3375.6,1.05344314]
[1641482280776,0.00113685,3376.0,3375.7,2.51192562]
[1641482281625,0.00113685,3376.0,3375.8,3.79433489]
[1641482281626,3.685e-05,3376.0,3375.8,3.79433489]
[1641482281928,3.685e-05,3376.0,3375.9,14.35578413]
[1641482282123,3.685e-05,3376.0,3375.9,15.35578413]
[1641482283123,3.685e-05,3376.0,3375.9,17.86770975]
[1641482283325,0.756841,3376.7,3376.0,11.0]
[1641482283524,0.756841,3376.7,3376.3,0.74027]
[1641482283724,0.00341054,3376.6,3376.4,1.99584791]
[1641482284125,0.00284212,3376.5,3376.4,9.39584791]
[1641482284826,0.70968312,3376.7,3376.5,8.7]
[1641482285466,0.70968312,3376.7,3376.4,1.99584791]
[1641482285667,0.70968312,3376.7,3376.6,2.26022045]
[1641482286070,0.71081997,3376.7,3376.6,2.26022045]
[1641482286270,0.71081997,3376.7,3376.4,2.26022045]
[1641482286872,0.71081997,3376.7,3376.4,4.33248235]
[1641482287074,0.71081997,3376.7,3376.4,2.0722619]
[1641482287771,0.71081997,3376.7,3376.2,2.26022045]
[1641482288172,0.71081997,3376.7,3376.3,0.00113685]
[1641482288772,1.01081997,3376.7,3376.3,0.00113685]
[1641482289013,1.01081997,3376.7,3376.4,2.26022045]
[1641482289813,1.01081997,3376.7,3376.3,3.88388524]
[1641482290025,0.71081997,3376.7,3376.3,3.88388524]
[1641482290416,0.71081997,3376.7,3376.4,1.0]
[1641482290616,0.71081997,3376.7,3376.4,3.26022045]
[1641482291222,0.71081997,3376.7,3376.4,2.4804603]
[1641482291418,0.71081997,3376.7,3376.4,5.49407948]
[1641482291617,0.71081997,3376.7,3376.4,4.49407948]
[1641482291817,0.71081997,3376.7,3376.4,3.01361918]
[1641482292019,0.7405,3376.6,3376.4,3.01361918]
[1641482292417,1.01081997,3376.7,3376.4,3.01361918]
[1641482292616,1.01081997,3376.7,3376.5,1.77101131]
[1641482292875,1.01081997,3376.7,3376.4,3.01361918]
[1641482293276,0.74048,3376.6,3376.4,4.14392862]
[1641482293478,1.01081997,3376.7,3376.4,1.13030944]
[1641482293680,0.71081997,3376.7,3376.4,1.13030944]
[1641482293877,0.71081997,3376.7,3376.6,2.16849075]
[1641482294280,0.71081997,3376.7,3376.6,1.13030944]
[1641482294884,1.01081997,3376.7,3376.6,1.13030944]
[1641482295281,0.74047,3376.6,3376.4,1.13030944]
[1641482295681,0.74047,3376.6,3376.4,1.1342697]
[1641482296082,0.74047,3376.6,3376.4,0.00396026]
[1641482297620,1.01081997,3376.7,3376.4,0.00396026]
[1641482298421,0.71081997,3376.7,3376.6,10.38026227]
[1641482299220,0.71081997,3376.7,3376.6,9.25]
[1641482300027,1.17536834,3378.0,3376.6,9.25]
[1641482300028,1.03716837,3378.0,3376.7,0.71078003]
[1641482300267,0.07627438,3378.4,3377.9,1.2851421]
[1641482300268,1.03716837,3378.2,3377.9,1.2851421]
[1641482300466,1.03716837,3378.2,3376.8,0.5223825]
[1641482300668,1.03716837,3378.2,3377.0,1.48015]
[1641482300871,2.26896113,3377.7,3376.9,1.66076891]
[1641482301065,2.26896113,3377.7,3377.0,0.00395907]
[1641482301272,0.00511581,3377.6,3377.0,0.00395907]
[1641482301766,2.26159325,3378.3,3377.5,5.10987798]
[1641482302168,0.00625265,3377.8,3377.5,5.10987798]
[1641482302368,0.00625265,3377.8,3377.6,1.69251969]
[1641482302571,0.00568423,3377.7,3377.6,1.69251969]
[1641482302769,0.00568423,3377.7,3377.6,3.32446652]
[1641482302970,0.00568423,3377.7,3377.6,13.37446652]
[1641482303168,0.00568423,3377.7,3377.6,12.37446652]
[1641482305224,0.00568423,3377.7,3377.6,13.87694524]
[1641482305621,0.00568423,3377.7,3377.6,4.82694524]
[1641482306221,0.00568423,3377.7,3377.6,1.63194683]
[1641482306422,0.00568423,3377.7,3377.6,1.63590574]
[1641482307421,0.00568423,3377.7,3377.6,3.24759415]
[1641482309374,0.00568423,3377.7,3377.6,1.63590574]
[1641482310780,0.00568423,3377.7,3377.6,3.8930409]
[1641482313230,0.00568423,3377.7,3377.6,1.63590574]
[1641482313829,7.10568423,3377.7,3377.6,0.64200574]
[1641482314035,7.40568423,3377.7,3377.6,0.64200574]
[1641482314233,11.20296141,3377.7,3377.6,0.64200574]
[1641482314533,11.20296141,3377.7,3376.7,2.25371808]
[1641482314534,1.4747594,3376.9,3376.7,2.25371808]
[1641482314736,10.15,3376.6,3376.3,0.00113685]
[1641482314931,7.45,3376.3,3375.9,3.76762503]
[1641482315135,0.351,3376.2,3375.9,3.76762503]
[1641482315407,9.9,3376.1,3374.9,6.29324562]
[1641482315590,0.74085,3375.8,3374.9,6.29324562]
[1641482315787,1.04085,3375.8,3375.5,0.00284212]
[1641482315987,2.04085,3375.8,3375.5,0.00284212]
[1641482316188,2.2225335,3375.9,3375.7,9.27569594]
[1641482316391,2.2225335,3375.9,3375.5,0.00284212]
[1641482316588,2.9631935,3375.9,3375.8,0.00113685]
[1641482317491,4.59657104,3375.9,3375.8,0.00113685]
[1641482317888,2.5225335,3375.9,3375.8,0.00113685]
[1641482318092,0.7408445,3375.9,3375.8,0.00113685]
[1641482318289,0.7408445,3375.9,3375.3,0.00397896]
[1641482318891,0.7405571,3376.1,3375.4,2.26982644]
[1641482319123,0.7405571,3376.1,3375.3,0.00397896]
[1641482319324,0.3,3376.1,3375.3,0.00397896]
[1641482319525,0.30113685,3376.2,3375.3,0.00397896]
[1641482320124,0.30113685,3376.2,3375.8,1.23067731]
[1641482320325,0.7405459,3376.1,3375.8,1.23067731]
[1641482320525,1.30113685,3376.2,3375.3,0.00397896]
[1641482320927,0.30113685,3376.2,3375.3,0.00397896]
[1641482321127,0.00113685,3376.2,3374.7,0.0073895]
[1641482321526,1.918717,3375.6,3375.1,1.32511567]
[1641482321725,0.740638,3375.9,3375.1,1.32511567]
[1641482321925,0.740638,3375.9,3375.7,1.06684362]
[1641482322128,0.00113685,3376.2,3375.7,1.06684362]
[1641482322326,0.00113685,3376.2,3375.8,0.00113685]
[1641482322783,1.97107093,3375.9,3375.0,0.00568423]
[1641482322973,0.00113685,3376.2,3375.0,0.00568423]
[1641482323173,0.00113685,3376.2,3374.9,2.86581833]
[1641482323378,0.30113685,3376.2,3374.9,0.00625266]
[1641482323574,0.7405594,3376.1,3375.5,1.2462246]
[1641482323973,0.7405594,3376.1,3375.6,0.00227369]
[1641482324673,0.6905594,3376.1,3375.6,0.00227369]
[1641482326075,11.69075,3375.9,3374.8,1.11742514]
[1641482326276,0.74091,3375.4,3374.8,1.11742514]
[1641482326525,0.74091,3375.4,3374.9,0.00397897]
[1641482326526,0.3,3375.1,3374.9,0.00397897]
[1641482326725,0.3,3375.1,3374.8,1.11742514]
[1641482326926,1.92317524,3375.0,3374.8,1.11742514]
[1641482327331,6.6,3374.9,3374.5,1.48990912]
[1641482327525,6.6,3374.9,3373.4,7.62311762]
[1641482327526,1.78212,3374.8,3373.9,1.79344255]
[1641482327726,0.3,3374.8,3373.9,1.79344255]
[1641482327926,6.9,3374.9,3373.9,1.79344255]
[1641482328127,9.87078464,3374.9,3373.9,1.79344255]
[1641482328329,2.2233641,3374.6,3373.9,1.79344255]
[1641482328535,0.74107,3374.4,3373.9,1.79344255]
[1641482328727,0.7411689,3374.1,3373.9,0.6757337]
[1641482328928,0.7411689,3374.1,3373.7,1.11770885]
[1641482328929,11.301,3374.1,3373.7,1.11770885]
[1641482329126,11.301,3374.1,3373.5,1.48990912]
[1641482329127,8.5,3374.0,3373.5,1.48990912]
[1641482329326,8.5,3374.0,3373.5,0.35816178]
[1641482329327,5.15,3373.8,3373.5,0.35816178]
[1641482329532,5.15,3373.8,3373.2,2.23487079]
[1641482329533,1.72587493,3373.6,3373.2,2.23487079]
[1641482329826,1.72587493,3373.6,3373.3,0.00284211]
[1641482329827,0.74144,3373.4,3373.3,0.00284211]
[1641482330026,0.3,3373.3,3373.2,2.23487079]
[1641482330271,0.3,3373.3,3372.6,2.31063116]
[1641482330467,2.04143,3373.5,3372.6,2.31063116]
[1641482330670,0.74135,3373.1,3372.7,0.00341054]
[1641482330875,0.3,3372.9,3372.7,0.00341054]
[1641482331269,0.3,3372.9,3372.0,2.23487079]
[1641482331270,0.7413993,3372.6,3372.0,2.23487079]
[1641482331671,0.7413993,3372.6,3372.1,0.00341054]
[1641482332270,1.75482184,3372.3,3372.1,1.41095843]
[1641482332471,2.9655517,3373.2,3372.1,1.41095843]
[1641482332472,0.13819997,3373.6,3372.1,1.41095843]
[1641482332678,0.13819997,3373.6,3373.4,1.31421016]
[1641482332871,0.00454738,3373.5,3372.2,0.00284212]
[1641482333273,0.74509426,3373.4,3372.2,0.00284212]
[1641482333675,1.76109726,3373.3,3372.4,1.90523475]
[1641482333872,1.76109726,3373.3,3372.8,1.32969091]
[1641482334123,0.00284211,3373.2,3372.8,1.32969091]
[1641482334528,0.00284211,3373.2,3372.5,0.00113685]
[1641482334529,0.00227369,3373.1,3372.5,0.00113685]
[1641482334724,1.482642,3373.0,3372.5,0.00113685]
[1641482334924,1.48434727,3373.0,3372.5,0.00113685]
[1641482335124,0.30113684,3372.9,3372.5,0.00113685]
[1641482335626,4.81904546,3372.9,3372.5,0.00113685]
[1641482335824,1.78383784,3372.9,3372.2,0.00284212]
[1641482336024,2.04245784,3372.9,3372.2,0.00284212]
[1641482336427,1.9496934,3372.8,3372.2,0.00284212]
[1641482336725,1.4830143,3372.6,3372.2,0.00284212]
[1641482336924,0.3,3372.5,3372.2,0.00284212]
[1641482339379,0.3,3372.5,3372.2,0.70928577]
[1641482339782,0.3,3372.5,3372.3,0.0022737]
[1641482339980,0.3,3372.5,3372.2,0.70644365]
[1641482340179,0.3,3372.5,3372.3,0.70644365]
[1641482340580,0.3,3372.5,3371.9,0.6757337]
[1641482340986,2.08955466,3372.1,3372.0,2.80170527]
[1641482341182,2.08955466,3372.1,3372.0,0.00170527]
[1641482342421,1.74146,3373.0,3372.0,0.00170527]
[1641482342422,0.00113684,3372.9,3372.0,0.00170527]
[1641482342720,0.3,3372.5,3372.0,0.00170527]
[1641482343120,0.00284212,3372.8,3372.0,0.00170527]
[1641482343322,0.3,3372.6,3371.9,0.6757337]
[1641482343522,1.97659731,3372.7,3371.9,0.6757337]
[1641482343722,1.79611412,3372.0,3371.9,0.6757337]
[1641482343924,2.09611412,3372.0,3371.9,0.6757337]
[1641482344121,2.09611412,3372.0,3371.5,1.13330172]
[1641482344521,2.09611412,3372.0,3371.6,0.00227369]
[1641482346171,2.2245446,3372.1,3371.6,0.00227369]
[1641482346371,2.9656669,3373.3,3371.9,2.23487079]
[1641482346578,2.9656669,3373.3,3372.5,9.3508635]
[1641482346972,2.2237805,3372.7,3372.5,9.3508635]
[1641482347572,0.7412573,3372.7,3372.6,1.94258953]
[1641482347773,0.00682108,3373.2,3372.6,1.94258953]
[1641482347972,7.897e-05,3372.7,3372.6,1.94258953]
[1641482348172,0.00625266,3373.1,3372.6,1.0]
[1641482348373,0.00860532,3374.2,3372.6,2.91466915]
[1641482348572,0.00178424,3373.0,3372.6,2.91466915]
[1641482348773,1.4821398,3373.5,3372.5,8.2]
[1641482348774,0.7410807,3373.3,3372.5,8.2]
[1641482349022,0.00121581,3372.9,3372.5,8.2]
[1641482349326,2.108e-05,3373.2,3372.8,0.74105]
[1641482349527,1.4819306,3374.2,3373.0,10.95]
[1641482349726,1.4819306,3374.2,3373.1,3.55341413]
[1641482349727,0.7409009,3373.9,3373.1,3.55341413]
[1641482349924,3.685e-05,3373.4,3373.2,0.351]
[1641482350126,0.00231054,3373.8,3373.3,13.99785511]
[1641482350323,0.00231054,3373.8,3373.3,15.08970511]
[1641482350523,1.4819306,3374.2,3373.3,15.08970511]
[1641482350524,4.212e-05,3373.7,3373.4,4.46655419]
[1641482350725,4.212e-05,3373.7,3373.5,3.6452875]
[1641482350926,0.351,3376.6,3373.7,10.95]
[1641482351125,0.351,3376.6,3375.3,1.40277981]
[1641482351126,0.3633331,3376.6,3375.3,1.40277981]
[1641482351325,0.00511581,3374.6,3373.9,3.8369]
[1641482351525,0.00511581,3374.6,3373.8,5.34165943]
[1641482351526,0.00511581,3374.6,3374.0,3.30733453]
[1641482351727,0.00454739,3374.5,3374.1,0.351]
[1641482351930,0.00454739,3374.5,3374.4,12.67249866]
[1641482352225,2.33082665,3375.2,3374.4,10.95]
[1641482352624,0.00738951,3375.0,3374.5,1.0678718]
[1641482352872,0.00738951,3375.0,3374.4,10.95396271]
[1641482353072,1.481561,3374.7,3374.4,10.95396271]
[1641482353270,1.481561,3374.7,3374.4,0.00396271]
[1641482353469,1.481561,3374.7,3373.9,3.6292]
[1641482353470,0.30511581,3374.6,3373.9,3.6292]
[1641482353768,0.30511581,3374.6,3373.6,1.2029]
[1641482353769,0.00454739,3374.5,3373.6,1.2029]
[1641482353969,0.00454739,3374.5,3373.5,1.11416015]
[1641482353970,0.7410085,3374.1,3373.5,1.11416015]
[1641482354169,0.74108,3373.9,3373.5,0.00109473]
[1641482354372,0.3,3373.7,3373.5,0.00109473]
[1641482354573,0.3,3373.7,3372.9,1.11306542]
[1641482354770,0.00113685,3373.6,3373.0,0.00227369]
[1641482355170,0.00113685,3373.6,3372.5,3.7207]
[1641482355171,3.54116,3373.5,3372.5,3.7207]
[1641482355373,6.11850221,3373.5,3372.5,3.7207]
[1641482355571,2.12851162,3372.8,3372.6,0.0022737]
[1641482355870,2.12851162,3372.8,3372.0,1.11306542]
[1641482355871,2.42851162,3372.8,3372.0,5.06996542]
[1641482356071,2.42851162,3372.8,3372.3,0.00170527]
[1641482356543,1.04139,3372.8,3372.2,1.20035568]
[1641482356744,0.7413805,3372.5,3372.2,1.20035568]
[1641482356944,0.3,3372.4,3372.2,1.20035568]
[1641482357347,0.7413805,3372.5,3372.2,1.20035568]
[1641482358147,2.2242308,3373.2,3372.2,1.20035568]
[1641482358148,0.7411883,3372.7,3372.2,1.20035568]
[1641482358446,1.0411883,3372.7,3372.0,0.00341054]
[1641482358648,0.3,3372.7,3372.0,0.00341054]
[1641482358846,0.3,3372.7,3371.7,0.00511581]
[1641482359047,2.2242114,3372.7,3371.6,0.00568423]
[1641482359348,0.3,3372.9,3371.6,0.00568423]
[1641482359349,0.3,3372.4,3371.6,0.00568423]
[1641482359547,3.20510446,3372.3,3371.6,0.00568423]
[1641482359751,0.7415,3372.2,3371.6,0.00568423]
[1641482360049,0.3,3372.2,3371.6,0.00568423]
[1641482360273,0.74167,3371.9,3371.1,3.757]
[1641482360475,0.74167,3371.9,3370.9,3.89751626]
[1641482360476,1.4832503,3371.4,3371.3,0.00170527]
[1641482360877,3.70169589,3371.4,3371.0,0.00341054]
[1641482361075,0.3,3371.3,3371.0,0.00341054]
[1641482361677,0.3,3371.3,3370.7,0.00511581]
[1641482361873,1.4833769,3371.0,3370.7,0.00511581]
[1641482362075,2.12217175,3370.9,3370.7,0.00511581]
[1641482362675,1.4833769,3371.0,3370.7,0.00511581]
[1641482362876,2.2249992,3371.8,3370.7,0.00511581]
[1641482362877,1.4830857,3371.9,3371.5,1.01430779]
[1641482363076,1.56269991,3372.3,3370.8,0.93558728]
[1641482363077,0.07960991,3372.3,3370.8,0.93558728]
[1641482363277,0.00113685,3371.8,3370.8,0.93558728]
[1641482363481,0.00227369,3372.0,3370.9,0.00397897]
[1641482363877,0.74154,3372.3,3370.9,3.72885369]
[1641482363878,1.90077839,3371.0,3370.9,3.72885369]
[1641482364327,1.90077839,3371.0,3370.9,8.17885369]